Workbook

Sheet Template
C1: FIXED ROUTES FIXED ROUTES FIXED ROUTES FIXED ROUTES FIXED ROUTES FIXED ROUTES | AC1: PARATRANSIT ROUTE(S) PARATRANSIT ROUTE(S) PARATRANSIT ROUTE(S) PARATRANSIT ROUTE(S)
A2: Date | B2: Day | C2: Conroe Connection Tickets | D2: Senior Ride Tickets | E2: $1.00 Adults | F2: $.50 Riders | G2: $.50 ADA Riders | H2: Children Under 6 | I2: Transfer Slips | J2: Employee/City Badge/EMS | K2: Service Animals | L2: Ramp Used | M2: Total FR Riders | N2: Expected Monies FR | O2: 1473 Amt. | P2: 1474 Amt. | Q2: 1475 Amt. | R2: 1476 Amt. | S2: 1603 Amt. | T2: 1604 Amt. | U2: Spare Amt. | V2: Total Collected FR | W2: Difference | X2: Overage / Shortage | Y2: Justification | Z2: Total FR Trips | AA2: Late FR Trips | AB2: OTP | AC2: Date | AD2: Day | AE2: $2.00 Paratransit Clients | AF2: $2.00 Companions | AG2: Personal Care Attendants | AH2: Service Animals | AI2: Total Para Riders | AJ2: Expected Monies Para | AK2: 1473 Amt. | AL2: 1474 Amt. | AM2: 1475 Amt. | AN2: 1476 Amt. | AO2: 1603 Amt. | AP2: 1604 Amt. | AQ2: Spare Amt. | AR2: Currency Collected | AS2: ADA Green Tickets | AT2: ADA White Tickets | AU2: Senior Rides Tickets | AV2: Conroe Connection Ticket "Fare" | AW2: Senior Rides Ticket "Fare" | AX2: Total Fare Collected | AY2: Difference | AZ2: Overage / Shortage | BA2: Justification | BB2: Total Para Trips | BC2: Late Para Trips | BD2: OTP | BE2: Total Weekly Riders
A3: 2017-03-01 | B3: Wednesday | C3: 9 | E3: =22+29 -> 51 | F3: 18 | G3: 4 | H3: 4 | I3: 22 | L3: 2 | M3: =C3+D3+E3+F3+G3+H3+I3+J3 -> 108 | N3: =E3*1+F3*0.5+G3*0.5 -> $62.00 | O3: $33.60 | R3: $28.40 | V3: =SUM(O3:U3) -> $62.00 | W3: =V3-N3 -> $0.00 | X3: =IF(W3>0, "Overage", IF(W3<0, "Shortage", "")) ->  | Z3: =2*12*5 -> 120 | AA3: 0 | AB3: =IF(Z3=0, 1, (Z3-AA3)/Z3) -> 100.00% | AC3: =A3 -> 2017-03-01 | AD3: =B3 -> Wednesday | AE3: 17 | AI3: =AE3+AF3+AG3 -> 17 | AJ3: =AE3*2+AF3*2 -> $34.00 | AP3: $22.00 | AR3: =SUM(AK3:AQ3) -> $22.00 | AS3: 5 | AT3: 1 | AV3: =(AS3+AT3)*2 -> $12.00 | AW3: =AU3*2 -> $0.00 | AX3: =AR3+AV3 -> $34.00 | AY3: =AX3-AJ3 -> $0.00 | AZ3: =IF(AY3>0, "Overage", IF(AY3<0, "Shortage", "")) ->  | BB3: =AE3 -> 17 | BC3: 0 | BD3: =IF(BB3=0, 1, (BB3-BC3)/BB3) -> 100.00% | BE3: =M3+AI3 -> 125
A4: 2017-03-02 | B4: Thursday | C4: 7 | E4: 65 | F4: 14 | G4: 2 | H4: 4 | I4: 30 | L4: 14 | M4: 122 | N4: $73.00 | O4: $23.39 | R4: $50.60 | V4: $73.99 | W4: =V4-N4 -> $0.99 | X4: =IF(W4>0, "Overage", IF(W4<0, "Shortage", "")) -> Overage | Z4: =2*12*5 -> 120 | AA4: 0 | AB4: 100.00% | AC4: =A4 -> 2017-03-02 | AD4: =B4 -> Thursday | AE4: 11 | AI4: 11 | AJ4: $22.00 | AP4: $18.00 | AR4: $18.00 | AT4: 2 | AV4: =(AS4+AT4)*2 -> $4.00 | AW4: =AU4*2 -> $0.00 | AX4: =AR4+AV4+AW4 -> $22.00 | AY4: $0.00 | AZ4: =IF(AY4>0, "Overage", IF(AY4<0, "Shortage", "")) ->  | BB4: 11 | BC4: 0 | BD4: 100.00% | BE4: =BE3+M4+AI4 -> 258
A5: 2017-03-03 | B5: Friday | C5: 5 | E5: 54 | F5: 17 | G5: 5 | H5: 5 | I5: 30 | L5: 15 | M5: 116 | N5: $65.00 | O5: $44.07 | R5: $22.00 | V5: $66.07 | W5: =V5-N5 -> $1.07 | X5: Overage | Z5: 120 | AA5: 0 | AB5: 100.00% | AC5: 2017-03-03 | AD5: Friday | AI5: 0 | AJ5: $0.00 | AR5: $0.00 | AV5: $0.00 | AW5: $0.00 | AX5: $0.00 | AY5: $0.00 | BB5: 0 | BC5: 0 | BD5: 100.00% | BE5: =BE4+M5+AI5 -> 374
A6: 2017-03-04 | B6: Saturday | M6: 0 | N6: $0.00 | V6: $0.00 | W6: $0.00 | Z6: 120 | AA6: 0 | AB6: 100.00% | AC6: 2017-03-04 | AD6: Saturday | AI6: =AE6+AF6+AG6 -> 0 | AJ6: $0.00 | AR6: $0.00 | AV6: $0.00 | AW6: $0.00 | AX6: $0.00 | AY6: $0.00 | BB6: 0 | BC6: 0 | BD6: 100.00% | BE6: 374
A7: 2017-03-05 | B7: Sunday | M7: 0 | N7: $0.00 | V7: $0.00 | W7: $0.00 | Z7: 120 | AA7: 0 | AB7: 100.00% | AC7: 2017-03-05 | AD7: Sunday | AI7: 0 | AJ7: $0.00 | AR7: $0.00 | AV7: $0.00 | AW7: $0.00 | AX7: $0.00 | AY7: $0.00 | BB7: 0 | BC7: 0 | BD7: 100.00% | BE7: 374
A8: 2017-03-06 | B8: Monday | C8: 2 | E8: 66 | F8: 14 | G8: 5 | H8: 7 | I8: 22 | L8: 10 | M8: 116 | N8: $75.50 | O8: $43.45 | R8: $32.00 | V8: $75.45 | W8: ($0.05) | X8: =IF(W8>0, "Overage", IF(W8<0, "Shortage", "")) -> Shortage | Z8: 120 | AA8: 0 | AB8: 100.00% | AC8: 2017-03-06 | AD8: Monday | AI8: 0 | AJ8: $0.00 | AR8: $0.00 | AV8: $0.00 | AW8: $0.00 | AX8: $0.00 | AY8: $0.00 | AZ8: =IF(AY8>0, "Overage", IF(AY8<0, "Shortage", "")) ->  | BB8: 0 | BC8: 0 | BD8: 100.00% | BE8: =M8+AI8 -> 116
A9: 2017-03-07 | B9: Tuesday | E9: 62 | F9: 12 | G9: 5 | H9: 6 | I9: 30 | L9: 4 | M9: 115 | N9: $70.50 | O9: $26.40 | R9: $44.27 | V9: $70.67 | W9: $0.17 | X9: =IF(W9>0, "Overage", IF(W9<0, "Shortage", "")) -> Overage | Z9: 120 | AA9: 0 | AB9: 100.00% | AC9: 2017-03-07 | AD9: Tuesday | AI9: 0 | AJ9: $0.00 | AR9: $0.00 | AV9: $0.00 | AW9: $0.00 | AX9: $0.00 | AY9: $0.00 | AZ9: =IF(AY9>0, "Overage", IF(AY9<0, "Shortage", "")) ->  | BB9: 0 | BC9: 0 | BD9: 100.00% | BE9: 231
A10: 2017-03-08 | B10: Wednesday | C10: 3 | E10: 41 | F10: 9 | G10: 4 | H10: 3 | I10: 18 | L10: 18 | M10: =C10+D10+E10+F10+G10+H10+I10+J10 -> 78 | N10: =E10*1+F10*0.5+G10*0.5 -> $47.50 | O10: $23.25 | P10: $24.41 | V10: =SUM(O10:U10) -> $47.66 | W10: =V10-N10 -> $0.16 | X10: =IF(W10>0, "Overage", IF(W10<0, "Shortage", "")) -> Overage | Z10: 120 | AA10: 0 | AC10: 2017-03-08 | AD10: Wednesday | AI10: 0 | AJ10: $0.00 | AR10: $0.00 | AV10: $0.00 | AX10: $0.00 | AY10: $0.00 | BB10: 0 | BC10: 0 | BD10: 100.00% | BE10: 309
A11: 2017-03-09 | B11: Thursday | C11: 7 | E11: 48 | F11: 16 | G11: 8 | I11: 15 | L11: 8 | M11: 94 | N11: $60.00 | O11: $22.45 | P11: $38.49 | V11: $60.94 | W11: $0.94 | X11: Overage | Z11: 120 | AA11: 0 | AB11: 100.00% | AC11: 2017-03-09 | AD11: Thursday | AI11: 0 | AJ11: $0.00 | AR11: $0.00 | AV11: $0.00 | AW11: $0.00 | AX11: $0.00 | AY11: $0.00 | BB11: 0 | BC11: 0 | BD11: 100.00% | BE11: 403
A12: 2017-03-10 | B12: Friday | C12: 3 | E12: 46 | F12: 9 | G12: 1 | H12: 5 | I12: 12 | L12: 4 | M12: 76 | N12: $51.00 | O12: $15.95 | P12: $36.50 | V12: $52.45 | W12: $1.45 | X12: Overage | Z12: 120 | AA12: 0 | AB12: 100.00% | AC12: 2017-03-10 | AD12: Friday | AI12: 0 | AJ12: $0.00 | AR12: $0.00 | AV12: $0.00 | AW12: $0.00 | AX12: $0.00 | AY12: $0.00 | BB12: 0 | BC12: 0 | BD12: 100.00% | BE12: =BE11+M12+AI12 -> 479
A13: 2017-03-11 | B13: Saturday | M13: 0 | N13: $0.00 | V13: $0.00 | W13: $0.00 | Z13: 120 | AA13: 0 | AB13: 100.00% | AC13: 2017-03-11 | AD13: Saturday | AI13: 0 | AJ13: $0.00 | AR13: $0.00 | AV13: $0.00 | AW13: $0.00 | AX13: $0.00 | AY13: $0.00 | BB13: 0 | BC13: 0 | BD13: 100.00% | BE13: =BE12+M13+AI13 -> 479
A14: 2017-03-12 | B14: Sunday | M14: 0 | N14: $0.00 | V14: $0.00 | W14: $0.00 | X14: =IF(W14>0, "Overage", IF(W14<0, "Shortage", "")) ->  | Z14: 120 | AA14: 0 | AB14: 100.00% | AC14: 2017-03-12 | AD14: Sunday | AI14: 0 | AJ14: $0.00 | AR14: =SUM(AK14:AQ14) -> $0.00 | AV14: $0.00 | AW14: $0.00 | AX14: $0.00 | AY14: $0.00 | AZ14: =IF(AY14>0, "Overage", IF(AY14<0, "Shortage", "")) ->  | BB14: 0 | BC14: 0 | BD14: 100.00% | BE14: =BE13+M14+AI14 -> 479
A15: 2017-03-13 | B15: Monday | C15: 6 | E15: 51 | F15: 20 | G15: 6 | H15: 8 | I15: 30 | J15: 2 | L15: 12 | M15: =C15+D15+E15+F15+G15+H15+I15+J15 -> 123 | N15: $64.00 | O15: $26.80 | P15: $43.00 | V15: =SUM(O15:U15) -> $69.80 | W15: $5.80 | X15: =IF(W15>0, "Overage", IF(W15<0, "Shortage", "")) -> Overage | Z15: 120 | AA15: 0 | AB15: 100.00% | AC15: 2017-03-13 | AD15: Monday | AI15: 0 | AJ15: $0.00 | AR15: $0.00 | AV15: $0.00 | AW15: $0.00 | AX15: $0.00 | AY15: $0.00 | AZ15: =IF(AY15>0, "Overage", IF(AY15<0, "Shortage", "")) ->  | BB15: 0 | BC15: 0 | BD15: 100.00% | BE15: =M15+AI15 -> 123
A16: 2017-03-14 | B16: Tuesday | C16: 1 | E16: 42 | F16: 26 | G16: 7 | H16: 11 | I16: 13 | L16: 16 | M16: 100 | N16: $58.50 | O16: $27.00 | P16: $36.00 | V16: $63.00 | W16: $4.50 | X16: Overage | Z16: 120 | AA16: 0 | AB16: 100.00% | AC16: 2017-03-14 | AD16: Tuesday | AI16: 0 | AJ16: $0.00 | AR16: $0.00 | AV16: $0.00 | AW16: $0.00 | AX16: $0.00 | AY16: $0.00 | BB16: 0 | BC16: 0 | BD16: 100.00% | BE16: =BE15+M16+AI16 -> 223
A17: 2017-03-15 | B17: Wednesday | C17: 2 | E17: 57 | F17: 25 | G17: 1 | H17: 14 | I17: 19 | L17: 10 | M17: 118 | N17: $70.00 | P17: $22.18 | R17: $51.49 | V17: $73.67 | W17: $3.67 | X17: Overage | Z17: 120 | AA17: 0 | AB17: 100.00% | AC17: 2017-03-15 | AD17: Wednesday | AI17: 0 | AJ17: $0.00 | AR17: $0.00 | AV17: $0.00 | AW17: $0.00 | AX17: $0.00 | AY17: $0.00 | BB17: 0 | BC17: 0 | BD17: 100.00% | BE17: =BE16+M17+AI17 -> 341
A18: 2017-03-16 | B18: Thursday | C18: 15 | E18: 50 | F18: 7 | G18: 2 | H18: 6 | I18: 9 | L18: 4 | M18: 89 | N18: $54.50 | O18: $21.00 | R18: $33.00 | V18: $54.00 | W18: ($0.50) | X18: Shortage | Z18: 120 | AA18: 0 | AB18: 100.00% | AC18: 2017-03-16 | AD18: Thursday | AI18: 0 | AJ18: $0.00 | AR18: $0.00 | AV18: $0.00 | AW18: $0.00 | AX18: $0.00 | AY18: $0.00 | BB18: 0 | BC18: 0 | BD18: 100.00% | BE18: =BE17+M18+AI18 -> 430
A19: 2017-03-17 | B19: Friday | C19: 3 | E19: 48 | F19: 15 | G19: 4 | H19: 7 | I19: 37 | L19: 16 | M19: 114 | N19: $57.50 | O19: $16.50 | R19: $40.50 | V19: $57.00 | W19: ($0.50) | X19: =IF(W19>0, "Overage", IF(W19<0, "Shortage", "")) -> Shortage | Z19: 120 | AA19: 0 | AB19: 100.00% | AC19: 2017-03-17 | AD19: Friday | AI19: 0 | AJ19: $0.00 | AR19: $0.00 | AV19: $0.00 | AW19: $0.00 | AX19: $0.00 | AY19: $0.00 | AZ19: =IF(AY19>0, "Overage", IF(AY19<0, "Shortage", "")) ->  | BB19: 0 | BC19: 0 | BD19: 100.00% | BE19: =BE18+M19+AI19 -> 544
A20: 2017-03-18 | B20: Saturday | M20: 0 | N20: $0.00 | V20: $0.00 | W20: $0.00 | X20: =IF(W20>0, "Overage", IF(W20<0, "Shortage", "")) ->  | Z20: 120 | AA20: 0 | AB20: 100.00% | AC20: 2017-03-18 | AD20: Saturday | AI20: 0 | AJ20: $0.00 | AR20: $0.00 | AV20: $0.00 | AW20: $0.00 | AX20: $0.00 | AY20: $0.00 | AZ20: =IF(AY20>0, "Overage", IF(AY20<0, "Shortage", "")) ->  | BB20: 0 | BC20: 0 | BD20: 100.00% | BE20: =BE19+M20+AI20 -> 544
A21: 2017-03-19 | B21: Sunday | M21: 0 | N21: $0.00 | V21: $0.00 | W21: $0.00 | Z21: 120 | AA21: 0 | AB21: 100.00% | AC21: 2017-03-19 | AD21: Sunday | AI21: 0 | AJ21: $0.00 | AR21: $0.00 | AV21: $0.00 | AW21: $0.00 | AX21: $0.00 | AY21: $0.00 | BB21: 0 | BC21: 0 | BD21: 100.00% | BE21: =M21+AI21 -> 0
A22: 2017-03-20 | B22: Monday | C22: 2 | E22: 57 | F22: 20 | G22: 2 | H22: 5 | I22: 21 | L22: 24 | M22: 107 | N22: $68.00 | O22: $35.00 | R22: $34.88 | V22: $69.88 | W22: $1.88 | X22: Overage | Z22: 120 | AA22: 0 | AB22: 100.00% | AC22: 2017-03-20 | AD22: Monday | AI22: 0 | AJ22: $0.00 | AR22: $0.00 | AV22: $0.00 | AW22: $0.00 | AX22: $0.00 | AY22: $0.00 | BB22: 0 | BC22: 0 | BD22: 100.00% | BE22: =BE21+M22+AI22 -> 107
A23: 2017-03-21 | B23: Tuesday | C23: 5 | E23: 57 | F23: 22 | G23: 1 | H23: 5 | I23: 29 | J23: 3 | L23: 24 | M23: 122 | N23: $68.50 | P23: $40.81 | R23: $30.25 | V23: $71.06 | W23: $2.56 | X23: Overage | Z23: 120 | AA23: 0 | AB23: 100.00% | AC23: 2017-03-21 | AD23: Tuesday | AI23: 0 | AJ23: $0.00 | AR23: $0.00 | AV23: $0.00 | AW23: $0.00 | AX23: $0.00 | AY23: $0.00 | BB23: 0 | BC23: 0 | BD23: 100.00% | BE23: 229
A24: 2017-03-22 | B24: Wednesday | C24: 9 | E24: 34 | F24: 19 | G24: 3 | H24: 5 | I24: 14 | J24: 5 | L24: 13 | M24: 89 | N24: $45.00 | P24: $13.76 | R24: $31.50 | V24: $45.26 | W24: $0.26 | X24: =IF(W24>0, "Overage", IF(W24<0, "Shortage", "")) -> Overage | Z24: 120 | AA24: 0 | AB24: 100.00% | AC24: 2017-03-22 | AD24: Wednesday | AI24: 0 | AJ24: $0.00 | AR24: $0.00 | AV24: $0.00 | AW24: $0.00 | AX24: $0.00 | AY24: $0.00 | AZ24: =IF(AY24>0, "Overage", IF(AY24<0, "Shortage", "")) ->  | BB24: 0 | BC24: 0 | BD24: 100.00% | BE24: 318
A25: 2017-03-23 | B25: Thursday | C25: 8 | E25: 29 | F25: 6 | G25: 3 | I25: 9 | L25: 8 | M25: 55 | N25: $33.50 | P25: $10.00 | R25: $23.60 | V25: $33.60 | W25: $0.10 | X25: =IF(W25>0, "Overage", IF(W25<0, "Shortage", "")) -> Overage | Z25: 120 | AA25: 0 | AB25: 100.00% | AC25: 2017-03-23 | AD25: Thursday | AI25: 0 | AJ25: $0.00 | AR25: $0.00 | AV25: $0.00 | AW25: $0.00 | AX25: $0.00 | AY25: $0.00 | AZ25: =IF(AY25>0, "Overage", IF(AY25<0, "Shortage", "")) ->  | BB25: 0 | BC25: 0 | BD25: 100.00% | BE25: 373
A26: 2017-03-24 | B26: Friday | C26: 3 | E26: 42 | F26: 19 | G26: 3 | H26: 4 | I26: 14 | L26: 6 | M26: 85 | N26: $53.00 | P26: $21.00 | R26: $32.54 | V26: $53.54 | W26: $0.54 | X26: Overage | Z26: 120 | AA26: 0 | AB26: 100.00% | AC26: 2017-03-24 | AD26: Friday | AI26: 0 | AJ26: $0.00 | AR26: $0.00 | AV26: $0.00 | AW26: $0.00 | AX26: $0.00 | AY26: $0.00 | BB26: 0 | BC26: 0 | BD26: 100.00% | BE26: 458
A27: 2017-03-25 | B27: Saturday | M27: 0 | N27: $0.00 | V27: $0.00 | W27: $0.00 | Z27: 120 | AA27: 0 | AB27: 100.00% | AC27: 2017-03-25 | AD27: Saturday | AI27: 0 | AJ27: $0.00 | AR27: $0.00 | AV27: $0.00 | AW27: $0.00 | AX27: $0.00 | AY27: $0.00 | BB27: 0 | BC27: 0 | BD27: 100.00% | BE27: 458
A28: 2017-03-26 | B28: Sunday | M28: 0 | N28: $0.00 | V28: $0.00 | W28: $0.00 | Z28: 120 | AA28: 0 | AB28: 100.00% | AC28: 2017-03-26 | AD28: Sunday | AI28: 0 | AJ28: $0.00 | AR28: $0.00 | AV28: $0.00 | AW28: $0.00 | AX28: $0.00 | AY28: $0.00 | BB28: 0 | BC28: 0 | BD28: 100.00%
A29: 2017-03-27 | B29: Monday | C29: 7 | E29: 63 | F29: 20 | G29: 5 | H29: 7 | I29: 30 | L29: 26 | M29: 132 | N29: $75.50 | P29: $38.50 | R29: $37.74 | V29: $76.24 | W29: $0.74 | X29: =IF(W29>0, "Overage", IF(W29<0, "Shortage", "")) -> Overage | Z29: 120 | AA29: 0 | AB29: 100.00% | AC29: 2017-03-27 | AD29: Monday | AI29: 0 | AJ29: $0.00 | AR29: $0.00 | AV29: $0.00 | AW29: $0.00 | AX29: $0.00 | AY29: $0.00 | AZ29: =IF(AY29>0, "Overage", IF(AY29<0, "Shortage", "")) ->  | BB29: 0 | BC29: 0 | BD29: 100.00% | BE29: =M29+AI29 -> 132
A30: 2017-03-28 | B30: Tuesday | C30: 2 | E30: 55 | F30: 14 | G30: 10 | H30: 7 | I30: 29 | L30: 31 | M30: 117 | N30: $67.00 | P30: $28.40 | R30: $41.25 | V30: $69.65 | W30: $2.65 | X30: =IF(W30>0, "Overage", IF(W30<0, "Shortage", "")) -> Overage | Z30: 120 | AA30: 0 | AB30: 100.00% | AC30: 2017-03-28 | AD30: Tuesday | AI30: 0 | AJ30: $0.00 | AR30: $0.00 | AV30: $0.00 | AW30: $0.00 | AX30: $0.00 | AY30: $0.00 | AZ30: =IF(AY30>0, "Overage", IF(AY30<0, "Shortage", "")) ->  | BB30: 0 | BC30: 0 | BD30: 100.00% | BE30: =BE29+M30+AI30 -> 249
A31: 2017-03-29 | B31: Wednesday | C31: 4 | E31: 35 | F31: 15 | G31: 1 | H31: 2 | I31: 15 | L31: 5 | M31: 72 | N31: $43.00 | P31: $22.25 | R31: $19.51 | V31: $41.76 | W31: ($1.24) | X31: Shortage | Z31: 120 | AA31: 0 | AB31: 100.00% | AC31: =A31 -> 2017-03-29 | AD31: Wednesday | AI31: 0 | AJ31: $0.00 | AR31: $0.00 | AV31: $0.00 | AW31: $0.00 | AX31: $0.00 | AY31: $0.00 | BB31: 0 | BC31: 0 | BD31: 100.00%
A32: 2017-03-30 | B32: Thursday | C32: 2 | E32: 47 | F32: 13 | G32: 2 | I32: 23 | L32: 8 | M32: 87 | N32: $54.50 | P32: $20.55 | R32: $35.55 | V32: $56.10 | W32: $1.60 | X32: Overage | Z32: 120 | AA32: 0 | AB32: 100.00% | AC32: 2017-03-30 | AD32: Thursday | AI32: 0 | AJ32: $0.00 | AR32: $0.00 | AV32: $0.00 | AW32: $0.00 | AX32: $0.00 | AY32: $0.00 | BB32: 0 | BC32: 0 | BD32: 100.00%
A33: 2017-03-31 | B33: Friday | C33: 7 | E33: 39 | F33: 23 | G33: 2 | H33: 3 | I33: 21 | L33: 14 | M33: 95 | N33: $51.50 | P33: $12.75 | R33: $38.00 | V33: $50.75 | W33: ($0.75) | X33: Shortage | Z33: 120 | AA33: 0 | AB33: 100.00% | AC33: 2017-03-31 | AD33: Friday | AI33: 0 | AJ33: $0.00 | AR33: $0.00 | AV33: $0.00 | AW33: $0.00 | AX33: $0.00 | AY33: $0.00 | BB33: 0 | BC33: 0 | BD33: 100.00%
B34: EOM Totals: | C34: =SUM(C3:C33) -> 112 | D34: =SUM(D3:D33) -> 0 | E34: 1139 | F34: 373 | G34: 86 | H34: 118 | I34: 492 | J34: 10 | K34: 0 | L34: 292 | M34: 2330 | N34: $1,368.50 | V34: =SUM(V3:V33) -> $1,394.54 | W34: =V34-N34 -> $26.04 | X34: Overage | Z34: =SUM(Z6:Z28) -> 2760 | AA34: =SUM(AA3:AA33) -> 0 | AB34: 100.00% | AD34: EOM Totals: | AE34: =SUM(AE3:AE33) -> 28 | AF34: 0 | AG34: 0 | AH34: 0 | AI34: 28 | AJ34: $56.00 | AR34: =SUM(AR3:AR33) -> $40.00 | AS34: 5 | AT34: 3 | AU34: 0 | AV34: =SUM(AV3:AV33) -> $16.00 | AW34: $0.00 | AX34: $56.00 | AY34: $0.00 | BB34: =SUM(BB3:BB33) -> 28 | BC34: =SUM(BC3:BC33) -> 0 | BD34: 100.00% | BE34: =BE5+BE12+BE19+BE26+BE30 -> 2104
A35: Manager Signature: | W35: =SUM(W3:W33) -> $26.04 | X35: Overage | AY35: =SUM(AY3:AY33) -> $0.00
A36: Date: | C36: 2016-02-16
AN37: 11232

Sheet June
C1: FIXED ROUTES FIXED ROUTES FIXED ROUTES FIXED ROUTES FIXED ROUTES FIXED ROUTES | AC1: PARATRANSIT ROUTE(S) PARATRANSIT ROUTE(S) PARATRANSIT ROUTE(S) PARATRANSIT ROUTE(S)
A2: Date | B2: Day | C2: Conroe Connection Tickets | D2: Senior Ride Tickets | E2: $1.00 Adults | F2: $.50 Riders | G2: $.50 ADA Riders | H2: Children Under 6 | I2: Transfer Slips | J2: Employee/City Badge/EMS | K2: Service Animals | L2: Ramp Used | M2: Total FR Riders | N2: Expected Monies FR | O2: 1473 Amt. | P2: 1474 Amt. | Q2: 1475 Amt. | R2: 1476 Amt. | S2: 1603 Amt. | T2: 1604 Amt. | U2: Spare Amt. | V2: Total Collected FR | W2: Difference | X2: Overage / Shortage | Y2: Justification | Z2: Total FR Trips | AA2: Late FR Trips | AB2: OTP | AC2: Date | AD2: Day | AE2: $2.00 Paratransit Clients | AF2: $2.00 Companions | AG2: Personal Care Attendants | AH2: Service Animals | AI2: Total Para Riders | AJ2: Expected Monies Para | AK2: 1473 Amt. | AL2: 1474 Amt. | AM2: 1475 Amt. | AN2: 1476 Amt. | AO2: 1603 Amt. | AP2: 1604 Amt. | AQ2: Spare Amt. | AR2: Currency Collected | AS2: ADA Green Tickets | AT2: ADA White Tickets | AU2: Senior Rides Tickets | AV2: Conroe Connection Ticket "Fare" | AW2: Senior Rides Ticket "Fare" | AX2: Total Fare Collected | AY2: Difference | AZ2: Overage / Shortage | BA2: Justification | BB2: Total Para Trips | BC2: Late Para Trips | BD2: OTP | BE2: Total Weekly Riders
A3: 2017-06-01 | B3: Thursday | C3: 11 | E3: 50 | F3: 16 | G3: 1 | H3: 2 | I3: 11 | L3: 8 | M3: =C3+D3+E3+F3+G3+H3+I3+J3 -> 91 | N3: =E3*1+F3*0.5+G3*0.5 -> $58.50 | P3: $40.00 | Q3: $21.11 | V3: =SUM(O3:U3) -> $61.11 | W3: =V3-N3 -> $2.61 | X3: =IF(W3>0, "Overage", IF(W3<0, "Shortage", "")) -> Overage | Z3: =2*12*5 -> 120 | AA3: 0 | AB3: =IF(Z3=0, 1, (Z3-AA3)/Z3) -> 100.00% | AC3: 2017-06-01 | AD3: =B3 -> Thursday | AE3: 16 | AI3: =AE3+AF3+AG3 -> 16 | AJ3: =AE3*2+AF3*2 -> $32.00 | AP3: $26.00 | AR3: =SUM(AK3:AQ3) -> $26.00 | AT3: 3 | AV3: =(AS3+AT3)*2 -> $6.00 | AW3: =AU3*2 -> $0.00 | AX3: =AR3+AV3+AW3 -> $32.00 | AY3: =AX3-AJ3 -> $0.00 | AZ3: =IF(AY3>0, "Overage", IF(AY3<0, "Shortage", "")) ->  | BB3: =AE3 -> 16 | BC3: 0 | BD3: =IF(BB3=0, 1, (BB3-BC3)/BB3) -> 100.00% | BE3: 107
A4: 2017-06-02 | B4: Friday | C4: 10 | E4: 46 | F4: 33 | G4: 2 | H4: 6 | I4: 31 | L4: 20 | M4: =C4+D4+E4+F4+G4+H4+I4+J4 -> 128 | N4: =E4*1+F4*0.5+G4*0.5 -> $63.50 | P4: $21.50 | Q4: $42.42 | V4: =SUM(O4:U4) -> $63.92 | W4: =V4-N4 -> $0.42 | X4: =IF(W4>0, "Overage", IF(W4<0, "Shortage", "")) -> Overage | Z4: 120 | AA4: 0 | AB4: 100.00% | AC4: 2017-06-02 | AD4: Friday | AE4: 16 | AI4: =AE4+AF4+AG4 -> 16 | AJ4: =AE4*2+AF4*2 -> $32.00 | AO4: $2.00 | AP4: $26.00 | AR4: =SUM(AK4:AQ4) -> $28.00 | AT4: 2 | AV4: =(AS4+AT4)*2 -> $4.00 | AX4: =AR4+AV4+AW4 -> $32.00 | AY4: $0.00 | BB4: 16 | BC4: 0 | BD4: 100.00% | BE4: =BE3+M4+AI4 -> 251
A5: 2017-06-05 | B5: Monday | C5: 12 | E5: 62 | F5: 14 | G5: 3 | H5: 3 | I5: 12 | L5: 4 | M5: =C5+D5+E5+F5+G5+H5+I5+J5 -> 106 | N5: =E5*1+F5*0.5+G5*0.5 -> $70.50 | P5: $50.45 | Q5: $20.50 | V5: =SUM(O5:U5) -> $70.95 | W5: =V5-N5 -> $0.45 | X5: Overage | Z5: 120 | AA5: 0 | AB5: =IF(Z5=0, 1, (Z5-AA5)/Z5) -> 100.00% | AC5: 2017-06-05 | AD5: Monday | AE5: 18 | AI5: =AE5+AF5+AG5 -> 18 | AJ5: =AE5*2+AF5*2 -> $36.00 | AO5: $6.00 | AP5: $12.00 | AR5: =SUM(AK5:AQ5) -> $18.00 | AS5: 5 | AT5: 4 | AV5: =(AS5+AT5)*2 -> $18.00 | AX5: =AR5+AV5+AW5 -> $36.00 | AY5: $0.00 | BB5: 18 | BC5: 0 | BD5: =IF(BB5=0, 1, (BB5-BC5)/BB5) -> 100.00% | BE5: =M5+AI5 -> 124
A6: 2017-06-06 | B6: Tuesday | C6: 3 | E6: 52 | F6: 27 | G6: 5 | H6: 2 | I6: 26 | L6: 14 | M6: 115 | N6: $68.00 | P6: $34.50 | Q6: $33.70 | V6: =SUM(O6:U6) -> $68.20 | W6: $0.20 | X6: Overage | Z6: 120 | AA6: 0 | AB6: 100.00% | AC6: 2017-06-06 | AD6: =B6 -> Tuesday | AE6: 14 | AI6: 14 | AJ6: $28.00 | AO6: $2.00 | AP6: $16.00 | AR6: =SUM(AK6:AQ6) -> $18.00 | AS6: 1 | AT6: 4 | AV6: $10.00 | AW6: =AU6*2 -> $0.00 | AX6: $28.00 | AY6: =AX6-AJ6 -> $0.00 | BB6: =AE6 -> 14 | BC6: 0 | BD6: 100.00% | BE6: =BE5+M6+AI6 -> 253
A7: 2017-06-07 | B7: Wednesday | C7: 15 | E7: 51 | F7: 20 | G7: 3 | H7: 2 | I7: 29 | K7: 1 | L7: 8 | M7: 120 | N7: $62.50 | P7: $46.52 | Q7: $18.50 | V7: $65.02 | W7: $2.52 | X7: Overage | Z7: 120 | AA7: 0 | AB7: 100.00% | AC7: 2017-06-07 | AD7: Wednesday | AE7: 18 | AI7: 18 | AJ7: $36.00 | AO7: $12.00 | AP7: $16.00 | AR7: $28.00 | AS7: 2 | AT7: 2 | AV7: $8.00 | AW7: $0.00 | AX7: $36.00 | AY7: $0.00 | BB7: 18 | BC7: 0 | BD7: 100.00% | BE7: 391
A8: 2017-06-08 | B8: Thursday | C8: 6 | E8: 26 | F8: 9 | G8: 2 | I8: 8 | L8: 4 | M8: 51 | N8: $31.50 | P8: $9.50 | Q8: $23.50 | V8: $33.00 | W8: $1.50 | X8: Overage | Z8: 120 | AA8: 0 | AB8: 100.00% | AC8: 2017-06-08 | AD8: Thursday | AE8: 10 | AI8: 10 | AJ8: $20.00 | AO8: $6.00 | AP8: $10.00 | AR8: $16.00 | AS8: 2 | AV8: $4.00 | AW8: $0.00 | AX8: $20.00 | AY8: $0.00 | BB8: 10 | BC8: 0 | BD8: 100.00% | BE8: =BE7+M8+AI8 -> 452
A9: 2017-06-09 | B9: Friday | C9: 9 | E9: 33 | F9: 19 | G9: 1 | H9: 4 | I9: 21 | L9: 13 | M9: 87 | N9: $43.00 | P9: $22.20 | Q9: $18.80 | V9: $41.00 | W9: ($2.00) | X9: Shortage | Z9: 120 | AA9: 0 | AB9: 100.00% | AC9: 2017-06-09 | AD9: Friday | AE9: 18 | AI9: 18 | AJ9: $36.00 | AO9: $10.00 | AP9: $12.00 | AR9: $22.00 | AS9: 2 | AT9: 5 | AV9: $14.00 | AW9: $0.00 | AX9: $36.00 | AY9: $0.00 | BB9: 18 | BC9: 0 | BD9: 100.00% | BE9: =BE8+M9+AI9 -> 557
A10: 2017-06-12 | B10: Monday | C10: 6 | E10: 49 | F10: 12 | G10: 2 | H10: 7 | I10: 21 | L10: 14 | M10: 97 | N10: $56.00 | P10: $15.43 | Q10: $20.75 | R10: $22.05 | V10: $58.23 | W10: $2.23 | X10: =IF(W10>0, "Overage", IF(W10<0, "Shortage", "")) -> Overage | Z10: 120 | AA10: 0 | AB10: 100.00% | AC10: 2017-06-12 | AD10: Monday | AE10: 9 | AI10: 9 | AJ10: $18.00 | AO10: $6.00 | AP10: $4.00 | AR10: $10.00 | AS10: 2 | AT10: 2 | AV10: $8.00 | AW10: $0.00 | AX10: $18.00 | AY10: $0.00 | BB10: 9 | BC10: 0 | BD10: 100.00% | BE10: =M10+AI10 -> 106
A11: 2017-06-13 | B11: Tuesday | C11: 14 | E11: 37 | F11: 11 | G11: 2 | H11: 2 | I11: 21 | L11: 8 | M11: 87 | N11: $43.50 | P11: $29.06 | R11: $16.60 | V11: $45.66 | W11: $2.16 | X11: Overage | Z11: 120 | AA11: 0 | AB11: 100.00% | AC11: 2017-06-13 | AD11: Tuesday | AE11: 8 | AI11: 8 | AJ11: $16.00 | AO11: $2.00 | AP11: $10.00 | AR11: $12.00 | AT11: 2 | AV11: $4.00 | AX11: $16.00 | AY11: $0.00 | BB11: 8 | BC11: 0 | BD11: 100.00% | BE11: =BE10+M11+AI11 -> 201
A12: 2017-06-14 | B12: Wednesday | C12: 8 | E12: 42 | F12: 12 | G12: 1 | H12: 12 | I12: 15 | L12: 9 | M12: 90 | N12: $48.50 | P12: $31.00 | Q12: $18.25 | V12: $49.25 | W12: $0.75 | X12: Overage | Z12: 120 | AA12: 0 | AB12: 100.00% | AC12: 2017-06-14 | AD12: Wednesday | AE12: 9 | AI12: 9 | AJ12: $18.00 | AO12: $6.00 | AP12: $8.00 | AR12: $14.00 | AT12: 2 | AV12: $4.00 | AX12: $18.00 | AY12: $0.00 | BB12: 9 | BC12: 0 | BD12: 100.00% | BE12: 300
A13: 2017-05-18 | B13: Thursday | M13: 0 | N13: $0.00 | V13: =SUM(O13:U13) -> $0.00 | W13: =V13-N13 -> $0.00 | X13: =IF(W13>0, "Overage", IF(W13<0, "Shortage", "")) ->  | Z13: 120 | AA13: 0 | AB13: =IF(Z13=0, 1, (Z13-AA13)/Z13) -> 100.00% | AC13: 2017-05-18 | AD13: Thursday | AI13: 0 | AJ13: $0.00 | AR13: $0.00 | AV13: $0.00 | AW13: =AU13*2 -> $0.00 | AX13: =AR13+AV13+AW13 -> $0.00 | AY13: $0.00 | BB13: =AE13 -> 0 | BC13: 0 | BD13: =IF(BB13=0, 1, (BB13-BC13)/BB13) -> 100.00% | BE13: =BE12+M13+AI13 -> 300
A14: 2017-05-19 | B14: Friday | M14: 0 | N14: $0.00 | V14: $0.00 | W14: $0.00 | Z14: 120 | AA14: 0 | AB14: 100.00% | AC14: 2017-05-19 | AD14: Friday | AI14: 0 | AJ14: $0.00 | AR14: $0.00 | AV14: $0.00 | AW14: $0.00 | AX14: $0.00 | AY14: $0.00 | BB14: 0 | BC14: 0 | BD14: 100.00% | BE14: =BE13+M14+AI14 -> 300
A15: 2017-06-15 | B15: Thursday | C15: 6 | E15: 54 | F15: 12 | G15: 2 | H15: 5 | I15: 22 | L15: 4 | M15: 101 | N15: $61.00 | O15: $3.00 | P15: $40.50 | R15: $19.01 | V15: $62.51 | W15: $1.51 | X15: Overage | Z15: 120 | AA15: 0 | AB15: 100.00% | AC15: 2017-06-15 | AD15: =B15 -> Thursday | AE15: 18 | AI15: 18 | AJ15: $36.00 | AO15: $8.00 | AP15: $14.00 | AR15: $22.00 | AS15: 2 | AT15: 5 | AV15: $14.00 | AW15: $0.00 | AX15: $36.00 | AY15: $0.00 | BB15: 18 | BC15: 0 | BD15: 100.00% | BE15: =BE14+M15+AI15 -> 419
A16: 2017-06-16 | B16: Friday | C16: 4 | E16: 48 | F16: 18 | G16: 3 | H16: 17 | I16: 29 | L16: 14 | M16: 119 | N16: $58.50 | P16: $24.00 | R16: $36.51 | V16: $60.51 | W16: $2.01 | X16: Overage | Z16: 120 | AA16: 0 | AB16: 100.00% | AC16: 2017-06-16 | AD16: =B16 -> Friday | AE16: 16 | AI16: 16 | AJ16: $32.00 | AO16: $10.00 | AP16: $8.00 | AR16: $18.00 | AS16: 4 | AT16: 3 | AV16: $14.00 | AW16: $0.00 | AX16: $32.00 | AY16: $0.00 | AZ16: =IF(AY16>0, "Overage", IF(AY16<0, "Shortage", "")) ->  | BB16: 16 | BC16: 0 | BD16: 100.00% | BE16: 554
A17: 2017-06-19 | B17: Monday | C17: 14 | E17: 66 | F17: 17 | G17: 3 | H17: 9 | I17: 20 | L17: 6 | M17: 129 | N17: $76.00 | P17: $45.90 | R17: $30.95 | V17: $76.85 | W17: $0.85 | X17: =IF(W17>0, "Overage", IF(W17<0, "Shortage", "")) -> Overage | Z17: 120 | AA17: 0 | AB17: 100.00% | AC17: 2017-06-19 | AD17: Monday | AE17: 13 | AI17: 13 | AJ17: $26.00 | AO17: $8.00 | AP17: $10.00 | AR17: $18.00 | AS17: 2 | AT17: 2 | AV17: $8.00 | AW17: $0.00 | AX17: $26.00 | AY17: $0.00 | AZ17: =IF(AY17>0, "Overage", IF(AY17<0, "Shortage", "")) ->  | BB17: 13 | BC17: 0 | BD17: 100.00% | BE17: =M17+AI17 -> 142
A18: 2017-06-20 | B18: Tuesday | C18: 5 | E18: 40 | F18: 6 | G18: 6 | I18: 11 | L18: 2 | M18: 68 | N18: $46.00 | O18: $10.00 | P18: $22.00 | R18: $15.00 | V18: $47.00 | W18: $1.00 | X18: =IF(W18>0, "Overage", IF(W18<0, "Shortage", "")) -> Overage | Z18: 120 | AA18: 0 | AB18: 100.00% | AC18: 2017-06-20 | AD18: Tuesday | AE18: 18 | AI18: 18 | AJ18: $36.00 | AO18: $22.00 | AR18: $22.00 | AS18: 4 | AT18: 3 | AV18: $14.00 | AW18: =AU18*2 -> $0.00 | AX18: $36.00 | AY18: $0.00 | AZ18: =IF(AY18>0, "Overage", IF(AY18<0, "Shortage", "")) ->  | BB18: 18 | BC18: 0 | BD18: 100.00% | BE18: =BE17+M18+AI18 -> 228
A19: 2017-06-21 | B19: Wednesday | C19: 4 | E19: 51 | F19: 13 | G19: 3 | H19: 5 | I19: 20 | L19: 2 | M19: 96 | N19: $59.00 | O19: $12.50 | P19: $22.50 | R19: $24.50 | V19: $59.50 | W19: $0.50 | X19: Overage | Z19: 120 | AA19: 0 | AB19: 100.00% | AC19: 2017-06-21 | AD19: Wednesday | AE19: 11 | AI19: 11 | AJ19: $22.00 | AO19: $4.00 | AP19: $10.00 | AR19: $14.00 | AS19: 2 | AT19: 2 | AV19: $8.00 | AW19: $0.00 | AX19: $22.00 | AY19: $0.00 | BB19: 11 | BC19: 0 | BD19: 100.00% | BE19: 335
A20: 2017-05-25 | B20: Thursday | M20: 0 | N20: $0.00 | AC20: 2017-05-25 | AV20: $0.00 | AY20: $0.00 | BE20: 335
A21: 2017-05-26 | B21: Friday | M21: 0 | N21: $0.00 | AC21: 2017-05-26 | AV21: $0.00 | AY21: $0.00 | BE21: 335
A22: 2017-06-22 | B22: Thursday | C22: 9 | E22: 28 | F22: 9 | G22: 2 | H22: 5 | I22: 14 | L22: 3 | M22: 67 | N22: $33.50 | O22: $7.12 | P22: $4.85 | R22: $19.00 | V22: =SUM(O22:U22) -> $30.97 | W22: =V22-N22 -> ($2.53) | X22: =IF(W22>0, "Overage", IF(W22<0, "Shortage", "")) -> Shortage | Z22: =2*12*5 -> 120 | AA22: 0 | AB22: =IF(Z22=0, 1, (Z22-AA22)/Z22) -> 100.00% | AC22: 2017-06-22 | AD22: =B22 -> Thursday | AE22: 9 | AI22: =AE22+AF22+AG22 -> 9 | AJ22: =AE22*2+AF22*2 -> $18.00 | AO22: $2.00 | AP22: $10.00 | AR22: =SUM(AK22:AQ22) -> $12.00 | AT22: 3 | AV22: $6.00 | AX22: =AR22+AV22+AW22 -> $18.00 | AY22: $0.00 | AZ22: =IF(AY22>0, "Overage", IF(AY22<0, "Shortage", "")) ->  | BB22: =AE22 -> 9 | BC22: 0 | BD22: =IF(BB22=0, 1, (BB22-BC22)/BB22) -> 100.00% | BE22: 411
A23: 2017-06-23 | B23: Friday | C23: 4 | E23: 44 | F23: 12 | G23: 2 | H23: 5 | I23: 13 | L23: 10 | M23: 80 | N23: $51.00 | O23: $33.00 | P23: $2.00 | R23: $15.05 | V23: =SUM(O23:U23) -> $50.05 | W23: =V23-N23 -> ($0.95) | X23: =IF(W23>0, "Overage", IF(W23<0, "Shortage", "")) -> Shortage | Z23: 120 | AA23: 0 | AB23: 100.00% | AC23: 2017-06-23 | AD23: Friday | AE23: 14 | AI23: 14 | AJ23: $28.00 | AO23: $6.00 | AP23: $10.00 | AR23: $16.00 | AS23: 1 | AT23: 6 | AV23: $14.00 | AX23: $30.00 | AY23: $2.00 | AZ23: Overage | BB23: 14 | BC23: 0 | BD23: 100.00% | BE23: 505
A24: 2017-06-26 | B24: Monday | C24: 6 | E24: 50 | F24: 15 | G24: 4 | H24: 4 | I24: 19 | L24: 16 | M24: 98 | N24: $59.50 | P24: $37.99 | R24: $21.50 | V24: =SUM(O24:U24) -> $59.49 | W24: =V24-N24 -> ($0.01) | X24: =IF(W24>0, "Overage", IF(W24<0, "Shortage", "")) -> Shortage | Z24: 120 | AA24: 0 | AB24: 100.00% | AC24: 2017-06-26 | AD24: Monday | AE24: 12 | AI24: =AE24+AF24+AG24 -> 12 | AJ24: =AE24*2+AF24*2 -> $24.00 | AO24: $12.00 | AP24: $4.00 | AR24: $16.00 | AS24: 2 | AT24: 2 | AV24: $8.00 | AX24: $24.00 | AY24: $0.00 | BB24: 12 | BD24: 100.00% | BE24: =M24+AI24 -> 110
A25: 2017-06-27 | B25: Tuesday | C25: 15 | E25: 44 | F25: 13 | G25: 3 | H25: 8 | I25: 11 | L25: 8 | M25: =C25+D25+E25+F25+G25+H25+I25+J25 -> 94 | N25: =E25*1+F25*0.5+G25*0.5 -> $52.00 | O25: $26.80 | P25: $23.71 | V25: =SUM(O25:U25) -> $50.51 | W25: ($1.49) | X25: =IF(W25>0, "Overage", IF(W25<0, "Shortage", "")) -> Shortage | Z25: 120 | AA25: 0 | AB25: 100.00% | AC25: 2017-06-27 | AD25: Tuesday | AE25: 8 | AI25: 8 | AJ25: $16.00 | AO25: $10.00 | AP25: $2.00 | AR25: $12.00 | AT25: 2 | AV25: $4.00 | AX25: $16.00 | AY25: $0.00 | BB25: 8 | BD25: 100.00% | BE25: 212
A26: 2017-06-28 | B26: Wednesday | C26: 20 | E26: 51 | F26: 18 | I26: 12 | L26: 4 | M26: 101 | N26: $60.00 | O26: $38.50 | R26: $21.56 | V26: =SUM(O26:U26) -> $60.06 | W26: =V26-N26 -> $0.06 | X26: =IF(W26>0, "Overage", IF(W26<0, "Shortage", "")) -> Overage | Z26: 120 | AA26: 0 | AB26: 100.00% | AC26: 2017-06-28 | AD26: Wednesday | AE26: 13 | AI26: 13 | AJ26: $26.00 | AO26: $12.00 | AP26: $2.00 | AR26: $14.00 | AT26: 6 | AV26: $12.00 | AX26: $26.00 | AY26: $0.00 | BB26: 13 | BD26: 100.00% | BE26: 326
A27: 2017-06-29 | B27: Thursday | C27: 17 | E27: 50 | F27: 13 | G27: 3 | I27: 2 | L27: 2 | M27: 85 | N27: $58.00 | O27: $11.50 | P27: $46.77 | V27: $58.27 | W27: $0.27 | X27: Overage | Z27: 120 | AA27: 0 | AB27: 100.00% | AC27: 2017-06-29 | AD27: Thursday | AE27: 15 | AI27: 15 | AJ27: $30.00 | AO27: $18.00 | AP27: $2.00 | AR27: $20.00 | AS27: 2 | AT27: 3 | AV27: $10.00 | AX27: $30.00 | AY27: $0.00 | BB27: 15 | BD27: 100.00% | BE27: 426
A28: 2017-06-30 | B28: Friday | C28: 8 | E28: 59 | F28: 19 | G28: 2 | H28: 4 | I28: 21 | M28: 113 | N28: $69.50 | O28: $47.28 | P28: $21.50 | V28: $68.78 | W28: ($0.72) | X28: Shortage | Z28: 120 | AA28: 0 | AB28: 100.00% | AC28: 2017-06-30 | AD28: Friday | AE28: 27 | AI28: 27 | AJ28: $54.00 | AO28: $22.00 | AP28: $18.00 | AR28: $40.00 | AS28: 2 | AT28: 5 | AV28: $14.00 | AX28: $54.00 | AY28: $0.00 | BB28: 27 | BD28: 100.00% | BE28: 566
C29: =SUM(C3:C28) -> 206 | D29: =SUM(D3:D26) -> 0 | E29: =SUM(E3:E28) -> 1033 | F29: =SUM(F3:F28) -> 338 | G29: =SUM(G3:G28) -> 55 | H29: =SUM(H3:H28) -> 102 | I29: =SUM(I3:I28) -> 389 | J29: =SUM(J3:J26) -> 0 | K29: =SUM(K3:K26) -> 1 | L29: =SUM(L3:L27) -> 173 | M29: =SUM(M3:M28) -> 2123 | N29: =SUM(N3:N28) -> $1,229.50 | V29: =SUM(V3:V28) -> $1,240.84 | W29: =V29-N29 -> $11.34 | X29: =IF(W29>0, "Overage", IF(W29<0, "Shortage", "")) -> Overage | Z29: 2640 | AA29: =SUM(AA3:AA28) -> 0 | AB29: =IF(Z29=0, 1, (Z29-AA29)/Z29) -> 100.00% | AD29: =B29 -> 0 | AE29: =SUM(AE3:AE28) -> 310 | AF29: =SUM(AF3:AF26) -> 0 | AG29: =SUM(AG3:AG26) -> 0 | AH29: =SUM(AH3:AH26) -> 0 | AI29: =SUM(AI3:AI28) -> 310 | AJ29: =SUM(AJ3:AJ28) -> $620.00 | AR29: =SUM(AR3:AR28) -> $416.00 | AS29: =SUM(AS3:AS28) -> 35 | AT29: =SUM(AT3:AT28) -> 68 | AU29: =SUM(AU3:AU26) -> 0 | AV29: =SUM(AV3:AV28) -> $206.00 | AW29: =SUM(AW3:AW26) -> $0.00 | AX29: =SUM(AX3:AX28) -> $622.00 | AY29: $2.00 | AZ29: =IF(AY29>0, "Overage", IF(AY29<0, "Shortage", "")) -> Overage | BB29: =SUM(BB3:BB28) -> 310 | BC29: =SUM(BC3:BC26) -> 0 | BD29: =IF(BB29=0, 1, (BB29-BC29)/BB29) -> 100.00% | BE29: =SUM(BE4,BE9,BE16,BE23,BE28) -> 2433
A30: Manager Signature: | AY30: =SUM(AY3:AY26) -> $2.00 | AZ30: Overage
A31: Date: | C31: 2017-07-17
